bitfinex/quotes_SOLUSD_20250209
["timestamp","ask_amount","ask_price","bid_price","bid_amount"]
[1739081179120,20.0,205.38,205.34,13.67711486]
[1739081181114,20.0,205.42,205.37,13.64711486]
[1739081181304,13.64711486,205.48,205.41,13.64711486]
[1739081181707,20.0,205.45,205.41,13.64711486]
[1739081182321,3.4063,205.5,205.44,13.64711486]
[1739081182499,7.818,205.52,205.47,13.64711486]
[1739081182705,13.64711486,205.54,205.47,13.64711486]
[1739081183099,20.0,205.51,205.47,13.64711486]
[1739081183299,13.77260486,205.53,205.46,13.64711486]
[1739081183820,20.0,205.5,205.46,13.64711486]
[1739081185702,13.77260486,205.56,205.49,13.64711486]
[1739081186107,0.12549,205.55,205.49,13.64711486]
[1739081186326,20.0,205.51,205.46,13.64711486]
[1739081186903,13.64711486,205.53,205.46,13.64711486]
[1739081187102,20.0,205.5,205.46,13.64711486]
[1739081187309,20.0,205.5,205.47,13.64711486]
[1739081187510,20.0,205.51,205.48,13.64711486]
[1739081188015,20.0,205.51,205.49,13.64711486]
[1739081188213,0.12549,205.55,205.49,13.64711486]
[1739081188214,20.0,205.53,205.49,13.64711486]
[1739081188820,20.0,205.54,205.5,13.64711486]
[1739081189020,20.0,205.54,205.53,13.64711486]
[1739081189224,13.64711486,205.56,205.5,13.64711486]
[1739081189422,3.4054,205.55,205.49,13.64711486]
[1739081189625,20.0,205.53,205.51,13.64711486]
[1739081189929,20.0,205.53,205.49,13.64711486]
[1739081190606,3.4688,205.53,205.5,8.52763395]
[1739081191628,20.063,205.53,205.49,8.52763395]
[1739081191929,20.063,205.53,205.48,8.52763395]
[1739081192624,0.063,205.53,205.48,8.52763395]
[1739081193837,0.063,205.53,205.52,8.52763395]
[1739081194210,0.063,205.53,205.52,9.2572842]
[1739081195019,0.063,205.53,205.52,8.52763395]
[1739081197137,0.063,205.53,205.48,8.52763395]
[1739081197527,0.063,205.53,205.49,8.52763395]
[1739081199141,0.063,205.53,205.5,8.52763395]
[1739081199818,0.063,205.53,205.49,8.52763395]
[1739081200215,0.063,205.53,205.47,8.52763395]
[1739081201036,0.063,205.53,205.48,8.52763395]
[1739081201240,20.0,205.51,205.47,8.52763395]
[1739081201853,20.063,205.53,205.48,8.52763395]
[1739081202149,20.0,205.51,205.47,8.52763395]
[1739081202352,8.52763395,205.48,205.41,132.52486299]
[1739081202550,8.52763395,205.46,205.44,0.03]
[1739081202850,3.4071,205.45,205.44,0.03]
[1739081204257,11.93473395,205.45,205.44,0.03]
[1739081205344,3.4071,205.45,205.44,0.03]
[1739081205648,11.93403395,205.49,205.44,0.03]
[1739081206222,2.85243507,205.45,205.44,0.03]
[1739081206621,2.85243507,205.45,205.42,8.52763395]
[1739081206843,2.85243507,205.45,205.41,8.52763395]
[1739081207042,20.0,205.44,205.41,8.52763395]
[1739081207644,20.0,205.44,205.39,141.05249694]
[1739081208230,20.0,205.44,205.4,8.52763395]
[1739081208429,20.0,205.45,205.41,8.52763395]
[1739081208637,20.0,205.45,205.42,8.52763395]
[1739081208952,23.4067,205.48,205.43,8.52763395]
[1739081209644,20.0,205.46,205.42,8.52763395]
[1739081210544,20.0,205.47,205.42,8.52763395]
[1739081211635,8.5154,205.51,205.41,8.52763395]
[1739081211636,20.0,205.46,205.41,8.52763395]
[1739081212035,28.52763395,205.45,205.39,132.52486299]
[1739081212948,20.0,205.45,205.39,132.52486299]
[1739081213155,3.4074,205.43,205.39,132.52486299]
[1739081213461,3.4074,205.43,205.36,8.52763395]
[1739081213827,20.0,205.41,205.36,8.52763395]
[1739081214250,20.0,205.4,205.36,8.52763395]
[1739081214561,11.93503395,205.43,205.36,8.52763395]
[1739081214746,20.0,205.4,205.36,8.52763395]
[1739081215249,20.0,205.4,205.37,8.52763395]
[1739081215432,20.0,205.41,205.39,8.52763395]
[1739081215637,20.0,205.41,205.4,8.52763395]
[1739081215857,20.0,205.41,205.39,8.52763395]
[1739081217728,20.0,205.43,205.39,8.52763395]
[1739081219134,20.0,205.42,205.38,8.52763395]
[1739081219931,20.0,205.41,205.37,8.52763395]
[1739081220136,20.0,205.41,205.35,8.52763395]
[1739081220535,8.52763395,205.42,205.35,8.52763395]
[1739081221356,23.4078,205.41,205.35,8.52763395]
[1739081223035,23.4078,205.41,205.34,132.55486299]
[1739081223036,0.12549,205.35,205.34,0.03]
[1739081223239,0.12549,205.35,205.27,0.03]
[1739081223240,20.0,205.31,205.27,0.03]
[1739081223441,8.52763395,205.28,205.21,8.52763395]
[1739081223661,20.0,205.26,205.22,8.02763395]
[1739081224043,20.0,205.26,205.2,8.52763395]
[1739081224239,6.331,205.25,205.09,1.0]
[1739081224452,6.331,205.25,205.11,8.52763395]
[1739081224453,8.52763395,205.19,205.11,8.52763395]
[1739081224666,6.331,205.25,205.11,8.52763395]
[1739081224667,8.52763395,205.2,205.13,8.52763395]
[1739081224974,8.52763395,205.21,205.14,8.52763395]
[1739081225138,20.0,205.18,205.12,0.36691026]
[1739081225340,8.52763395,205.2,205.13,8.52763395]
[1739081225663,20.0,205.2,205.15,8.52763395]
[1739081226647,2.85891516,205.24,205.18,13.68889837]
[1739081226860,2.85891516,205.24,205.2,13.68889837]
[1739081227070,2.85891516,205.24,205.22,13.68889837]
[1739081227482,6.331,205.3,205.2,13.68889837]
[1739081227483,13.68889837,205.27,205.2,13.68889837]
[1739081227776,13.68889837,205.28,205.21,14.0551032]
[1739081228980,13.68889837,205.29,205.21,14.0551032]
[1739081229476,13.68889837,205.33,205.26,13.68889837]
[1739081229701,20.0,205.3,205.26,13.68889837]
[1739081230083,20.0,205.3,205.25,13.68889837]
[1739081230688,13.68889837,205.31,205.24,13.68889837]
[1739081230897,13.68889837,205.31,205.24,14.05473251]
[1739081231073,20.0,205.26,205.22,13.68889837]
[1739081231272,20.0,205.26,205.21,13.68889837]
[1739081231892,3.4094,205.31,205.21,13.68889837]
[1739081231893,13.68889837,205.31,205.24,13.68889837]
[1739081232064,13.68889837,205.32,205.24,13.68889837]
[1739081232271,13.68889837,205.32,205.25,13.68889837]
[1739081232605,13.68889837,205.34,205.27,13.68889837]
[1739081232779,20.0,205.32,205.28,14.05447233]
[1739081233095,13.68889837,205.36,205.29,13.68889837]
[1739081233881,13.68889837,205.36,205.29,14.05424981]
[1739081234082,13.68889837,205.37,205.3,13.68889837]
[1739081234292,13.68889837,205.37,205.31,0.36523477]
[1739081234500,13.68889837,205.35,205.28,13.68889837]
[1739081234796,13.68889837,205.37,205.3,13.68889837]
[1739081235007,33.68889837,205.38,205.31,0.36526402]
[1739081236087,13.68889837,205.37,205.3,13.68889837]
[1739081236291,13.68889837,205.36,205.29,13.68889837]
[1739081236598,13.68889837,205.37,205.3,13.68889837]
[1739081236997,33.68889837,205.38,205.3,13.68889837]
[1739081237201,13.68889837,205.42,205.35,13.68889837]
[1739081237401,0.063,205.44,205.37,13.68889837]
[1739081237402,13.75189837,205.44,205.37,13.68889837]
[1739081237608,13.75189837,205.44,205.38,0.36474829]
[1739081237789,13.68889837,205.41,205.34,13.68889837]
[1739081237985,13.75189837,205.41,205.34,13.68889837]
[1739081238501,20.0,205.39,205.35,14.05391816]
[1739081239897,20.0,205.39,205.36,13.68889837]
[1739081240112,20.0,205.39,205.36,14.05378581]
[1739081240677,20.0,205.39,205.36,0.36488744]
[1739081240882,0.063,205.41,205.36,14.05378581]
[1739081241306,13.68889837,205.4,205.33,13.68889837]
[1739081241479,13.68889837,205.39,205.32,14.05375673]
[1739081241887,13.68889837,205.4,205.33,13.68889837]
[1739081242296,13.75189837,205.41,205.34,13.68889837]
[1739081242493,0.063,205.41,205.35,13.68889837]
[1739081242791,0.063,205.41,205.36,0.36485499]
[1739081242992,13.75189837,205.41,205.36,0.36485499]
[1739081243384,3.4079,205.4,205.36,0.36485499]
[1739081243579,3.4079,205.4,205.34,13.68889837]
[1739081243798,17.09679837,205.4,205.34,13.68889837]
[1739081244107,13.68889837,205.38,205.32,14.05382705]
[1739081244285,13.68889837,205.37,205.32,0.36492868]
[1739081244992,13.68889837,205.37,205.29,0.03]
[1739081244993,13.68889837,205.33,205.29,0.03]
[1739081245304,17.09849837,205.3,205.29,0.03]
[1739081245513,30.91288674,205.3,205.29,0.03]
[1739081245711,17.22398837,205.3,205.29,0.03]
[1739081245889,20.0,205.27,205.19,13.68889837]
[1739081246201,13.68889837,205.26,205.18,13.68889837]
[1739081247422,3.53509,205.3,205.18,13.68889837]
[1739081247423,13.68889837,205.29,205.22,13.68889837]
[1739081248193,20.0,205.26,205.22,13.68889837]
[1739081249497,13.68889837,205.28,205.21,13.68889837]
[1739081250018,20.0,205.26,205.22,13.68889837]
[1739081250318,3.4099,205.29,205.22,13.68889837]
[1739081250693,20.0,205.27,205.23,13.68889837]
[1739081251012,20.0,205.27,205.22,13.68889837]
[1739081252118,13.68889837,205.29,205.22,13.68889837]
[1739081252310,17.09869837,205.29,205.22,13.68889837]
[1739081252822,3.4098,205.29,205.23,13.68889837]
[1739081252989,3.4098,205.29,205.24,13.68889837]
[1739081253291,17.09829837,205.31,205.25,13.68889837]
[1739081254707,20.0,205.28,205.24,13.68889837]
[1739081255813,17.09859837,205.3,205.24,13.68889837]
[1739081257502,13.68889837,205.28,205.22,13.68889837]
[1739081258112,17.09889837,205.28,205.21,146.21376136]
[1739081258317,17.09889837,205.28,205.22,13.68889837]
[1739081258811,13.68889837,205.27,205.21,13.68889837]
[1739081260112,13.68889837,205.28,205.22,13.68889837]
[1739081260613,11.95892361,205.3,205.24,8.54932361]
[1739081261115,8.54932361,205.28,205.22,8.54932361]
[1739081261328,8.54932361,205.26,205.2,8.54932361]
[1739081262531,8.54932361,205.27,205.21,8.54932361]
[1739081262808,11.95932361,205.28,205.22,8.54932361]
[1739081264431,8.61232361,205.29,205.23,8.54932361]
[1739081264610,0.063,205.29,205.24,8.54932361]
[1739081264813,8.61232361,205.29,205.23,8.54932361]
[1739081265798,12.02222361,205.29,205.23,8.54932361]
[1739081266722,0.063,205.29,205.26,8.54932361]
[1739081267929,0.063,205.29,205.28,9.54932361]
[1739081268100,0.063,205.29,205.28,32.63598575]
[1739081268729,0.063,205.29,205.28,165.16084874]
[1739081269216,0.063,205.29,205.28,156.61152513]
[1739081269616,0.063,205.29,205.28,165.28633874]
[1739081272520,3.4709,205.41,205.31,1.0]
[1739081272700,3.4709,205.41,205.37,8.54932361]
[1739081273329,3.4709,205.41,205.36,8.54932361]
[1739081274429,2.8676847,205.4,205.36,8.54932361]
[1739081274608,6.2755847,205.4,205.36,8.54932361]
[1739081276141,20.0,205.37,205.29,132.52486299]
[1739081276329,20.0,205.37,205.27,83.0]
[1739081276330,8.54932361,205.32,205.27,215.52486299]
[1739081276507,8.54932361,205.31,205.27,83.0]
[1739081276826,8.54932361,205.28,205.21,8.54932361]
[1739081277029,8.54932361,205.26,205.21,132.52486299]
[1739081277416,10.18732361,205.32,205.25,8.54932361]
[1739081277622,1.638,205.32,205.27,8.04932361]
[1739081278336,2.8676847,205.31,205.28,8.54932361]
[1739081278943,2.8676847,205.31,205.3,8.54932361]
[1739081279308,2.8676847,205.31,205.29,8.54932361]
[1739081279601,2.8676847,205.31,205.3,8.54932361]
[1739081280212,2.8676847,205.34,205.3,8.54932361]
[1739081281230,2.8676847,205.34,205.31,8.54932361]
[1739081281416,2.8676847,205.34,205.3,141.0741866]
[1739081281824,3.4087,205.36,205.3,141.0741866]
[1739081282038,11.95802361,205.36,205.3,132.52486299]
[1739081283232,8.54932361,205.34,205.3,132.52486299]
[1739081283440,8.54932361,205.33,205.3,132.52486299]
[1739081283605,8.54932361,205.31,205.28,3.98]
[1739081283806,8.54932361,205.3,205.24,132.52486299]
[1739081284931,11.95892361,205.3,205.24,132.52486299]
[1739081285141,8.54932361,205.31,205.24,141.0741866]
[1739081285346,11.95882361,205.31,205.24,141.0741866]
[1739081285638,8.54932361,205.3,205.24,132.52486299]
[1739081286019,8.54932361,205.3,205.24,141.0741866]
[1739081286337,8.54932361,205.31,205.24,141.0741866]
[1739081286525,8.54932361,205.31,205.27,0.03]
[1739081286827,8.54932361,205.3,205.27,0.03]
[1739081287024,8.5846,205.36,205.27,0.03]
[1739081287229,8.54932361,205.28,205.27,0.03]
[1739081288229,11.41580556,205.28,205.27,0.03]
[1739081289142,14.82570556,205.28,205.27,0.03]
[1739081290209,6.27638195,205.28,205.27,0.03]
[1739081290637,14.82570556,205.28,205.27,0.03]
[1739081293942,20.0,205.25,205.18,0.03]
[1739081294123,8.54932361,205.19,205.18,0.03]
[1739081295040,11.96072361,205.19,205.18,0.03]
[1739081296840,8.54932361,205.19,205.18,0.03]
[1739081297736,11.96062361,205.2,205.18,0.03]
[1739081298040,10.19142361,205.22,205.18,0.03]
[1739081298224,13.60242361,205.22,205.18,0.03]
[1739081298415,20.0,205.19,205.18,0.03]
[1739081299036,20.0,205.2,205.18,0.03]
[1739081299538,11.96012361,205.23,205.18,0.03]
[1739081299727,8.54932361,205.26,205.18,132.55486299]
[1739081300032,0.063,205.27,205.22,8.54932361]
[1739081300237,20.063,205.27,205.23,8.54932361]
[1739081300446,20.0,205.26,205.23,8.54932361]
[1739081300620,0.063,205.27,205.23,8.54932361]
[1739081300820,0.063,205.27,205.24,8.54932361]
[1739081301239,0.063,205.27,205.26,8.54932361]
[1739081301816,0.063,205.27,205.25,8.54932361]
[1739081302138,0.063,205.27,205.24,141.0741866]
[1739081302640,0.063,205.27,205.24,132.52486299]
[1739081303045,8.61232361,205.27,205.24,132.52486299]
[1739081303845,0.063,205.27,205.24,132.52486299]
[1739081304747,0.063,205.27,205.23,3.94]
[1739081305246,11.95962361,205.26,205.18,8.57932361]
[1739081305433,8.54932361,205.25,205.18,8.57932361]
[1739081305836,8.54932361,205.26,205.19,8.54932361]
[1739081306253,12.02242361,205.27,205.19,8.54932361]
[1739081306843,0.063,205.27,205.21,8.54932361]
[1739081307430,0.063,205.27,205.26,8.54932361]
[1739081307763,0.063,205.27,205.26,141.0741866]
[1739081309654,0.063,205.27,205.26,139.54226661]
[1739081310554,0.063,205.27,205.26,140.54226661]
[1739081310857,0.063,205.27,205.26,153.95411514]
[1739081311153,0.063,205.27,205.26,139.54226661]
[1739081312051,0.063,205.27,205.26,152.95411514]
[1739081312258,0.063,205.27,205.26,153.95411514]
[1739081312663,0.063,205.27,205.26,152.95411514]
[1739081312837,0.063,205.27,205.26,139.54226661]
[1739081313344,0.063,205.27,205.26,143.46226661]
[1739081314936,0.063,205.27,205.26,161.40990514]
[1739081315137,0.063,205.27,205.26,157.99960514]
[1739081315453,0.063,205.27,205.26,154.07960514]
[1739081315641,0.063,205.27,205.26,130.992943]
[1739081315838,0.063,205.27,205.23,130.992943]
[1739081316245,0.063,205.27,205.2,4.92]
[1739081316246,0.063,205.27,205.2,8.54932361]
[1739081316444,8.61232361,205.27,205.2,8.54932361]
[1739081316856,12.02242361,205.27,205.2,8.54932361]
[1739081317835,3.4731,205.27,205.2,8.54932361]
[1739081318174,0.063,205.27,205.24,8.54932361]
[1739081318663,0.063,205.27,205.23,8.54932361]
[1739081319038,0.063,205.27,205.24,8.54932361]
[1739081319239,0.063,205.27,205.24,139.54226661]
[1739081319460,0.063,205.27,205.26,8.54932361]
[1739081319634,0.063,205.27,205.26,152.95411514]
[1739081320655,0.063,205.27,205.26,154.07960514]
[1739081321550,0.063,205.27,205.26,153.07960514]
[1739081321751,0.063,205.27,205.26,152.95411514]
[1739081322268,0.063,205.27,205.26,130.992943]
[1739081322444,0.063,205.27,205.24,130.992943]
[1739081322963,11.95972361,205.26,205.23,3.94]
[1739081323265,8.54932361,205.25,205.22,130.992943]
[1739081324161,8.54932361,205.25,205.2,130.992943]
[1739081324465,3.4104,205.26,205.2,130.992943]
[1739081325269,3.4104,205.26,205.22,0.03]
[1739081326465,13.6825269,205.26,205.22,0.03]
[1739081327066,13.7455269,205.27,205.22,0.03]
[1739081327869,0.063,205.27,205.22,0.03]
[1739081328058,17.1556269,205.27,205.22,0.03]
[1739081329170,3.4731,205.27,205.22,0.03]
[1739081330852,0.063,205.27,205.23,13.6825269]
[1739081331167,0.063,205.27,205.22,13.7125269]
[1739081333351,0.063,205.27,205.23,13.6825269]
[1739081335351,0.063,205.27,205.22,13.7125269]
[1739081335970,0.063,205.27,205.22,144.7054699]
[1739081337650,0.063,205.27,205.23,13.6825269]
[1739081338148,0.063,205.27,205.24,13.6825269]
[1739081340066,0.063,205.27,205.26,27.09437543]
[1739081340275,0.063,205.27,205.26,242.08731843]
[1739081341166,0.063,205.27,205.26,242.33829843]
[1739081341486,0.063,205.27,205.26,243.33829843]
[1739081342473,0.063,205.27,205.26,227.6754699]
[1739081342681,0.063,205.27,205.26,213.992943]
[1739081345671,0.063,205.27,205.26,222.53979919]
[1739081346666,0.063,205.27,205.26,213.992943]
[1739081347252,0.063,205.27,205.25,130.992943]
[1739081350172,2.87167343,205.26,205.25,130.992943]
[1739081350780,2.87167343,205.26,205.24,139.53979919]
[1739081351279,2.87167343,205.26,205.24,130.992943]
[1739081351492,14.82882962,205.26,205.22,0.03]
[1739081351701,8.54685619,205.24,205.22,0.03]
[1739081352397,8.54685619,205.23,205.22,0.03]
[1739081352682,2.87167343,205.25,205.22,0.03]
[1739081352892,2.87167343,205.25,205.24,8.54685619]
[1739081353087,2.87167343,205.25,205.22,0.03]
[1739081353287,6.28217343,205.25,205.22,0.03]
[1739081354069,2.87167343,205.25,205.22,8.57685619]
[1739081354386,2.87167343,205.25,205.24,8.54685619]
[1739081354777,2.87167343,205.25,205.23,8.54685619]
[1739081356791,0.063,205.27,205.23,8.54685619]
[1739081357269,8.54685619,205.25,205.22,131.022943]
[1739081357477,8.54685619,205.24,205.22,131.022943]
[1739081357680,8.54685619,205.23,205.22,0.03]
[1739081358879,11.41471536,205.23,205.22,0.03]
[1739081359495,14.82551536,205.23,205.22,0.03]
[1739081360687,2.86785917,205.23,205.22,0.03]
[1739081360897,2.86785917,205.23,205.22,8.57685619]
[1739081361272,2.86785917,205.23,205.22,139.56979919]
[1739081361599,2.86785917,205.23,205.22,140.56979919]
[1739081361978,2.86785917,205.23,205.22,153.98164772]
[1739081362701,0.063,205.26,205.23,13.41184853]
[1739081362901,0.063,205.26,205.25,8.54685619]
[1739081364600,0.063,205.26,205.25,13.67464768]
[1739081365679,0.063,205.26,205.25,144.66759068]
[1739081366488,0.063,205.26,205.25,158.07943921]
[1739081366687,0.063,205.26,205.25,241.33041921]
[1739081368703,0.063,205.26,205.25,242.33041921]
[1739081368902,0.063,205.26,205.25,241.07943921]
[1739081369902,0.063,205.26,205.25,242.33041921]
[1739081370795,0.063,205.27,205.26,14.66282853]
[1739081370994,0.063,205.36,205.29,13.41184853]
[1739081371211,0.063,205.36,205.34,13.67464768]
[1739081371594,0.063,205.36,205.33,13.67464768]
[1739081372517,2.86589106,205.35,205.33,13.67464768]
[1739081374516,2.86589106,205.35,205.33,144.66759068]
[1739081374812,0.063,205.36,205.33,144.66759068]
[1739081375617,0.063,205.36,205.34,13.67464768]
[1739081376617,0.063,205.36,205.35,13.67464768]
[1739081377119,0.063,205.36,205.35,144.66759068]
[1739081379715,0.063,205.36,205.35,130.992943]
[1739081380608,0.063,205.36,205.33,144.66759068]
[1739081381394,0.063,205.36,205.33,130.992943]
[1739081383597,0.063,205.36,205.33,144.66759068]
[1739081384518,0.063,205.36,205.33,130.992943]
[1739081384813,8.54260014,205.35,205.29,83.0]
[1739081385002,8.54260014,205.35,205.29,213.992943]
[1739081385393,3.4089,205.34,205.29,213.992943]
[1739081385902,8.54260014,205.35,205.29,213.992943]
[1739081386204,12.01430014,205.36,205.29,213.992943]
[1739081386515,12.01430014,205.36,205.29,222.53554314]
[1739081387712,8.54260014,205.35,205.29,213.992943]
[1739081388515,8.60560014,205.36,205.29,222.53554314]
[1739081388820,3.4088,205.35,205.29,222.53554314]
[1739081392426,0.063,205.36,205.3,8.54260014]
[1739081392611,3.4716,205.36,205.3,8.54260014]
[1739081392801,5.58993406,205.37,205.3,8.54260014]
[1739081393536,8.54260014,205.38,205.31,8.54260014]
[1739081393823,8.54260014,205.4,205.33,8.54260014]
[1739081394126,11.95050014,205.4,205.33,8.54260014]
[1739081396123,3.4083,205.38,205.33,8.54260014]
[1739081396419,3.4083,205.38,205.34,8.54260014]
[1739081396621,2.86397675,205.39,205.35,8.54260014]
[1739081398429,2.86397675,205.38,205.35,8.54260014]
[1739081398926,2.86397675,205.38,205.33,130.992943]
[1739081398927,2.86397675,205.38,205.33,139.53554314]
[1739081399627,2.86397675,205.38,205.34,8.54260014]
[1739081400123,2.86397675,205.38,205.35,8.54260014]
[1739081401405,2.86397675,205.38,205.35,139.53554314]
[1739081401612,2.86397675,205.38,205.35,130.992943]
[1739081401812,6.27207675,205.39,205.35,130.992943]
[1739081403049,2.86397675,205.39,205.35,139.53554314]
[1739081403251,2.86397675,205.39,205.37,8.54260014]
[1739081403615,2.86397675,205.38,205.37,8.54260014]
[1739081404341,2.86397675,205.38,205.37,139.53554314]
[1739081404838,2.86397675,205.38,205.37,235.94739167]
[1739081405040,2.86397675,205.38,205.37,240.60677167]
[1739081405250,2.86397675,205.38,205.37,241.60677167]
[1739081406145,0.063,205.4,205.39,2.0]
[1739081406316,0.063,205.41,205.4,30.74802881]
[1739081406847,0.063,205.41,205.4,34.15592881]
[1739081409255,0.063,205.44,205.41,1.0]
[1739081409457,0.063,205.44,205.43,43.20542867]
[1739081409624,0.063,205.44,205.43,44.20542867]
[1739081410252,0.063,205.44,205.43,43.20542867]
[1739081410438,0.063,205.44,205.43,44.20542867]
[1739081411349,0.063,205.44,205.43,47.61282867]
[1739081413053,0.063,205.44,205.43,48.82168224]
[1739081413241,0.063,205.44,205.43,262.81462524]
[1739081413852,0.063,205.44,205.43,238.15624524]
[1739081414053,0.063,205.44,205.43,231.20479153]
[1739081415333,0.063,205.44,205.43,213.992943]
[1739081417551,0.063,205.44,205.43,222.53554314]
[1739081417857,0.063,205.44,205.43,235.94739167]
[1739081418039,0.063,205.44,205.43,236.19837167]
[1739081421650,0.063,205.44,205.43,238.19837167]
[1739081421855,0.063,205.47,205.46,34.53733853]
[1739081422047,0.063,205.47,205.46,257.07288167]
[1739081423573,0.063,205.47,205.46,260.60527167]
[1739081424355,0.063,205.47,205.46,261.60527167]
[1739081425458,0.063,205.47,205.46,260.60527167]
[1739081430158,0.063,205.47,205.46,257.19837167]
[1739081430343,0.063,205.47,205.46,260.60527167]
[1739081430959,0.063,205.47,205.46,264.38527167]
[1739081432279,0.063,205.47,205.46,236.07288167]
[1739081432565,0.063,205.47,205.46,239.85288167]
[1739081435871,0.063,205.47,205.46,235.94739167]
[1739081436052,0.063,205.47,205.46,239.72739167]
[1739081439259,0.063,205.47,205.46,239.85288167]
[1739081441270,0.063,205.47,205.46,243.38527167]
[1739081442965,0.063,205.47,205.46,239.97837167]
[1739081444970,0.063,205.47,205.46,243.38527167]
[1739081446679,0.063,205.47,205.46,240.29943913]
[1739081449293,0.063,205.47,205.46,241.29943913]
[1739081450264,0.063,205.48,205.47,5.4567676]
[1739081450457,0.063,205.48,205.47,19.11959613]
[1739081450654,0.063,205.53,205.52,13.66282853]
[1739081450861,0.063,205.53,205.52,227.65577153]
[1739081451255,0.063,205.57,205.56,0.12549]
[1739081451457,0.063,205.57,205.56,22.39940613]
[1739081451876,0.063,205.57,205.56,22.52489613]
[1739081452061,0.063,205.57,205.55,5.4567676]
[1739081452674,0.063,205.57,205.53,13.41184853]
[1739081453297,8.58683418,205.57,205.53,130.992943]
[1739081453586,3.4682,205.57,205.53,130.992943]
[1739081456282,0.063,205.57,205.53,130.992943]
[1739081457411,8.14983418,205.59,205.53,130.992943]
[1739081457614,8.52383418,205.58,205.51,139.51677718]
[1739081458211,0.063,205.61,205.51,139.51677718]
[1739081458212,8.52383418,205.56,205.51,130.992943]
[1739081458509,11.92913418,205.56,205.51,130.992943]
[1739081458711,3.4053,205.56,205.51,130.992943]
[1739081459807,3.4053,205.56,205.51,139.51677718]
[1739081460013,23.4048,205.59,205.53,8.52383418]
[1739081460305,8.1658,205.6,205.58,8.52383418]
[1739081461105,0.063,205.61,205.6,13.41184853]
[1739081461286,0.063,205.61,205.6,21.93568271]
[1739081461807,0.063,205.61,205.6,152.92862571]
[1739081462101,0.063,205.61,205.6,153.05411571]
[1739081462287,0.063,205.61,205.6,161.70343989]
[1739081463089,0.063,205.61,205.6,153.05411571]
[1739081463292,0.063,205.61,205.6,152.92862571]
[1739081467104,0.063,205.61,205.6,130.992943]
[1739081467318,0.063,205.61,205.58,8.52383418]
[1739081467809,0.063,205.61,205.59,8.52383418]
[1739081469607,0.063,205.61,205.57,12.24383418]
[1739081469908,8.52383418,205.6,205.54,143.23677718]
[1739081470115,8.52383418,205.6,205.54,130.992943]
[1739081470298,8.52383418,205.59,205.54,130.992943]
[1739081470491,8.52383418,205.58,205.54,130.992943]
[1739081470702,8.52383418,205.58,205.52,95.24383418]
[1739081470703,8.52383418,205.58,205.52,213.992943]
[1739081470906,8.52383418,205.57,205.52,213.992943]
[1739081473524,6.4305,205.61,205.5,130.992943]
[1739081473525,8.52383418,205.54,205.5,130.992943]
[1739081473696,8.52383418,205.52,205.5,130.992943]
[1739081473895,8.52383418,205.52,205.47,13.41184853]
[1739081474205,8.52383418,205.52,205.47,17.13184853]
[1739081474408,13.58423418,205.53,205.47,17.13184853]
[1739081474711,13.58423418,205.53,205.47,13.41184853]
[1739081474923,8.52383418,205.5,205.46,213.992943]
[1739081475133,8.52383418,205.48,205.46,83.0]
[1739081476303,8.52383418,205.49,205.46,83.0]
[1739081477323,11.93043418,205.49,205.46,83.0]
[1739081478218,8.52383418,205.48,205.46,83.0]
[1739081478424,8.52383418,205.47,205.41,131.022943]
[1739081478622,8.52383418,205.5,205.41,131.022943]
[1739081478623,8.52383418,205.45,205.41,0.03]
[1739081480308,11.93093418,205.45,205.41,0.03]
[1739081482029,8.52383418,205.47,205.41,0.03]
[1739081482217,8.52383418,205.48,205.41,8.55383418]
[1739081482414,11.93023418,205.49,205.42,8.52383418]
[1739081482914,8.52383418,205.47,205.41,0.03]
[1739081483114,8.52383418,205.45,205.41,0.03]
[1739081483816,8.52383418,205.45,205.35,131.022943]
[1739081484023,8.52383418,205.41,205.35,131.022943]
[1739081484224,11.93173418,205.4,205.35,131.022943]
[1739081484424,3.4079,205.4,205.35,131.022943]
[1739081485309,3.4079,205.4,205.35,139.54677718]
[1739081485728,3.4079,205.4,205.35,131.022943]